bitfinex-derivatives/quotes_SOLF0:USTF0_20250924
["timestamp","ask_amount","ask_price","bid_price","bid_amount"]
[1758740626047,3.28737508,214.07,214.0,7.76]
[1758740626249,3.28737508,214.06,214.03,4.2027]
[1758740626555,3.28737508,214.05,214.03,11.9627]
[1758740626755,7.21,214.1,214.03,11.9627]
[1758740626958,7.21,214.09,214.03,11.9627]
[1758740627249,0.81336917,214.11,214.03,11.9627]
[1758740627250,10.49964434,214.08,214.04,7.76]
[1758740627455,3.28964434,214.07,214.04,7.76]
[1758740627651,3.28964434,214.07,213.99,65.3896]
[1758740627652,3.28964434,214.06,214.05,4.2024]
[1758740627855,3.28964434,214.06,214.05,11.9624]
[1758740628050,3.28964434,214.07,214.05,11.9624]
[1758740628357,7.21,214.08,214.05,11.9624]
[1758740628652,7.21,214.1,214.06,7.76]
[1758740628852,0.81336917,214.11,214.06,7.76]
[1758740629050,7.21,214.1,214.06,7.76]
[1758740629451,114.11336917,214.11,214.06,7.76]
[1758740629748,7.21,214.1,214.06,7.76]
[1758740630056,7.21,214.1,214.06,11.9621]
[1758740630254,120.51,214.11,214.04,7.76]
[1758740630649,113.3,214.11,214.05,7.76]
[1758740632153,113.3,214.11,214.08,4.2018]
[1758740632355,120.51,214.11,214.08,11.9618]
[1758740632847,7.21,214.11,214.08,11.9618]
[1758740633045,118.54240222,214.16,214.09,7.76]
[1758740633249,7.21,214.15,214.09,7.76]
[1758740635953,118.54240222,214.16,214.1,4.2014]
[1758740636158,125.88240222,214.16,214.1,4.2014]
[1758740638358,120.68,214.16,214.1,4.2014]
[1758740638954,120.68,214.16,214.12,7.56]
[1758740639347,7.34,214.15,214.12,7.56]
[1758740639748,113.3,214.17,214.12,7.56]
[1758740639950,113.3,214.17,214.13,12.1307]
[1758740640151,7.49,214.16,214.13,12.1307]
[1758740640962,5.20240222,214.2,214.14,12.1305]
[1758740640963,12.69240222,214.2,214.14,12.1305]
[1758740641155,7.49,214.18,214.15,7.93]
[1758740641462,8.3028657,214.23,214.15,7.93]
[1758740641665,7.49,214.23,214.15,7.93]
[1758740641860,65.15,214.23,214.15,7.93]
[1758740642864,65.15,214.23,214.17,4.1999]
[1758740645160,7.49,214.22,214.15,12.1304]
[1758740645363,57.66,214.23,214.15,12.1304]
[1758740645656,57.66,214.23,214.11,7.93]
[1758740645657,7.49,214.22,214.11,7.93]
[1758740645853,7.49,214.22,214.13,4.2008]
[1758740645854,11.6892,214.22,214.13,4.2008]
[1758740646059,7.49,214.22,214.13,4.2008]
[1758740646558,3.36119839,214.21,214.13,4.2008]
[1758740646863,7.49,214.2,214.13,4.2008]
[1758740649453,11.6896,214.2,214.13,4.2008]
[1758740652564,7.49,214.2,214.13,4.2008]
[1758740653668,7.49,214.2,214.14,4.2005]
[1758740654466,7.49,214.2,214.08,65.3594]
[1758740654467,7.49,214.2,214.12,4.201]
[1758740654764,7.49,214.2,214.09,7.93]
[1758740654967,7.49,214.2,214.1,7.93]
[1758740656266,7.49,214.2,214.13,4.2007]
[1758740658272,7.49,214.2,214.11,4.2012]
[1758740659268,7.49,214.18,214.11,4.2012]
[1758740660169,7.49,214.18,214.12,4.2009]
[1758740661574,4.1998,214.19,214.13,12.1307]
[1758740661776,7.49,214.2,214.13,7.93]
[1758740663876,7.49,214.2,214.17,7.62]
[1758740664373,7.22,214.22,214.17,7.62]
[1758740664569,7.22,214.22,214.17,11.8199]
[1758740664772,89.07979839,214.25,214.17,11.8199]
[1758740664968,7.22,214.24,214.17,11.8199]
[1758740665168,89.07979839,214.25,214.17,11.8199]
[1758740665377,84.88119839,214.25,214.17,11.8199]
[1758740665572,7.22,214.24,214.17,11.8199]
[1758740665976,84.88119839,214.25,214.17,11.8199]
[1758740666177,4.199,214.23,214.17,11.8199]
[1758740666386,7.22,214.22,214.17,11.8199]
[1758740666587,4.199,214.23,214.17,11.8199]
[1758740666787,7.22,214.22,214.17,11.8199]
[1758740667090,4.199,214.23,214.17,11.8199]
[1758740667288,7.22,214.22,214.17,11.8199]
[1758740667489,4.199,214.23,214.17,11.8199]
[1758740667790,7.22,214.24,214.18,4.1998]
[1758740669288,11.4188,214.24,214.18,4.1998]
[1758740669689,12.42240222,214.24,214.16,4.2002]
[1758740669888,7.22,214.21,214.13,7.62]
[1758740671289,7.22,214.21,214.15,4.2003]
[1758740671491,7.22,214.22,214.15,11.8203]
[1758740674192,11.4192,214.22,214.15,11.8203]
[1758740679096,16.62160222,214.22,214.15,11.8203]
[1758740680502,4.1993,214.21,214.15,11.8203]
[1758740682203,12.42240222,214.22,214.15,7.62]
[1758740683297,5.20240222,214.22,214.17,4.1999]
[1758740683502,12.42240222,214.22,214.18,7.62]
[1758740683704,5.20240222,214.22,214.18,7.62]
[1758740684004,7.22,214.21,214.18,7.62]
[1758740685206,5.20240222,214.22,214.18,7.62]
[1758740685403,7.22,214.21,214.18,7.62]
[1758740686603,5.20240222,214.22,214.17,4.1999]
[1758740686803,7.22,214.21,214.18,7.62]
[1758740691904,5.20240222,214.22,214.18,11.8198]
[1758740692105,16.62130222,214.23,214.18,4.1998]
[1758740692505,16.62130222,214.23,214.19,7.62]
[1758740692909,7.22,214.22,214.19,7.62]
[1758740697912,7.59,214.25,214.19,7.6]
[1758740698312,5.20240222,214.26,214.22,2.14847626]
[1758740698503,16.98990222,214.3,214.23,7.6]
[1758740699206,11.7875,214.3,214.23,11.7987]
[1758740700212,16.98990222,214.3,214.23,11.7987]
[1758740700408,19.13837848,214.3,214.23,7.6]
[1758740700604,2.14847626,214.28,214.2,9.49847626]
[1758740700811,7.83,214.27,214.2,9.49847626]
[1758740702306,12.0283,214.27,214.2,9.49847626]
[1758740704124,12.0283,214.27,214.2,13.69777626]
[1758740704715,7.83,214.27,214.2,13.69777626]
[1758740704916,5.20240222,214.29,214.2,2.14847626]
[1758740705111,19.37857848,214.3,214.21,7.35]
[1758740705512,17.23010222,214.3,214.23,7.35]
[1758740705713,12.0277,214.3,214.23,7.35]
[1758740706109,17.23010222,214.3,214.23,7.35]
[1758740706313,12.0277,214.3,214.23,7.35]
[1758740706515,7.83,214.3,214.23,11.5487]
[1758740708219,7.83,214.3,214.24,4.1986]
[1758740708813,7.83,214.3,214.27,7.35]
[1758740709313,7.83,214.3,214.26,4.1983]
[1758740709514,7.83,214.3,214.26,11.5483]
[1758740709911,113.2,214.31,214.26,11.5483]
[1758740710110,7.83,214.3,214.26,11.5483]
[1758740710316,113.2,214.31,214.26,11.5483]
[1758740711113,7.83,214.3,214.27,7.35]
[1758740711316,113.2,214.31,214.28,7.35]
[1758740711516,113.2,214.31,214.27,4.198]
[1758740711909,113.2,214.31,214.28,7.35]
[1758740712310,7.83,214.32,214.28,7.35]
[1758740712718,7.83,214.32,214.25,11.5485]
[1758740712920,9.97847626,214.32,214.25,11.5485]
[1758740713314,14.17567626,214.32,214.25,11.5485]
[1758740713510,7.83,214.31,214.25,7.35]
[1758740713715,7.83,214.29,214.22,7.35]
[1758740714120,2.14847626,214.28,214.22,7.35]
[1758740714522,7.83,214.27,214.22,7.35]
[1758740714712,2.14847626,214.28,214.22,7.35]
[1758740715117,7.83,214.27,214.22,7.35]
[1758740715416,6.34647626,214.28,214.22,7.35]
[1758740715922,7.83,214.27,214.22,7.35]
[1758740716820,6.34647626,214.28,214.22,7.35]
[1758740717020,4.1982,214.27,214.21,4.1992]
[1758740717216,7.83,214.26,214.21,4.1992]
[1758740717422,4.1982,214.27,214.21,4.1992]
[1758740718023,12.0282,214.27,214.21,4.1992]
[1758740718325,12.0282,214.27,214.22,7.35]
[1758740718625,7.83,214.27,214.21,4.1992]
[1758740718926,7.83,214.27,214.21,11.5492]
[1758740719827,6.34647626,214.28,214.22,11.549]
[1758740720126,2.14847626,214.28,214.22,11.549]
[1758740721924,7.83,214.27,214.22,7.35]
[1758740722124,2.14847626,214.28,214.22,7.35]
[1758740722326,67.88240222,214.3,214.2,4.1994]
[1758740722327,2.14847626,214.26,214.2,4.1994]
[1758740722526,2.14847626,214.24,214.18,11.5498]
[1758740723629,2.14847626,214.24,214.19,4.1995]
[1758740723928,9.71847626,214.24,214.2,7.53]
[1758740725730,7.57,214.23,214.2,7.53]
[1758740727328,6.34727626,214.24,214.2,7.53]
[1758740727531,7.57,214.23,214.2,7.53]
[1758740727826,6.34727626,214.24,214.2,7.53]
[1758740728026,7.57,214.23,214.2,7.53]
[1758740728228,6.34727626,214.24,214.2,7.53]
[1758740728435,7.57,214.22,214.15,11.7304]
[1758740728926,9.71847626,214.22,214.15,11.7304]
[1758740729128,13.91767626,214.22,214.15,11.7304]
[1758740732534,11.7692,214.22,214.15,11.7304]
[1758740737042,11.7694,214.21,214.15,7.53]
[1758740737332,10.92723401,214.21,214.15,7.53]
[1758740737634,10.92723401,214.21,214.13,4.2007]
[1758740738129,3.35723401,214.21,214.13,11.7307]
[1758740738329,4.1998,214.19,214.13,11.7307]
[1758740744645,7.57,214.2,214.13,11.7307]
[1758740745241,11.7696,214.2,214.13,11.7307]
[1758740745743,7.57,214.2,214.13,11.7307]
[1758740746150,7.57,214.2,214.14,7.53]
[1758740747251,4.1998,214.19,214.13,4.2007]
[1758740747450,11.7698,214.19,214.13,11.7307]
[1758740748550,11.7698,214.19,214.13,7.53]
[1758740749247,7.57,214.2,214.13,7.53]
[1758740749452,7.57,214.2,214.1,7.53]
[1758740750350,4.2003,214.16,214.1,7.53]
[1758740755356,4.2003,214.16,214.03,4.98447328]
[1758740755357,7.2,214.15,214.08,7.81]
[1758740756258,4.2007,214.14,214.08,7.81]
[1758740759952,7.2,214.15,214.08,4.2017]
[1758740760163,7.2,214.15,214.09,7.54]
[1758740761268,11.4005,214.15,214.09,7.54]
[1758740762266,7.2,214.15,214.09,11.7415]
[1758740763468,7.2,214.15,214.09,7.54]
[1758740764069,4.2007,214.14,214.09,7.54]
[1758740764273,11.7607,214.14,214.08,7.54]
[1758740764571,11.7607,214.14,214.08,11.7417]
[1758740767068,11.7607,214.14,214.08,7.54]
[1758740767967,11.7609,214.13,214.07,7.54]
[1758740768470,4.2011,214.12,214.07,7.54]
[1758740768676,7.56,214.11,214.07,7.54]
[1758740768872,7.56,214.11,214.05,7.54]
[1758740769368,11.7614,214.11,214.05,7.54]
[1758740769571,7.56,214.11,214.05,7.54]
[1758740770073,4.2015,214.1,214.05,7.54]
[1758740770274,7.56,214.11,214.04,7.54]
[1758740770874,7.56,214.15,214.07,7.54]
[1758740771573,11.7605,214.15,214.07,11.7419]
[1758740771970,7.56,214.15,214.08,7.54]
[1758740773171,7.56,214.15,214.09,4.2015]
[1758740774175,11.7605,214.15,214.09,4.2015]
[1758740777581,11.7605,214.15,214.08,7.54]
[1758740779576,11.7605,214.15,214.08,11.7417]
[1758740784688,4.2007,214.14,214.08,11.7417]
[1758740786485,7.54,214.13,214.08,11.7417]
[1758740786685,4.2007,214.14,214.08,4.2017]
[1758740786990,11.7409,214.13,214.07,7.54]
[1758740788886,7.54,214.15,214.07,7.54]
[1758740789087,3.35723401,214.13,214.04,4.2025]
[1758740789292,7.54,214.12,214.03,7.54]
[1758740789794,7.54,214.06,214.03,7.54]
[1758740790287,7.54,214.06,214.0,4.2033]
[1758740790893,3.31532255,214.05,214.0,4.2033]
[1758740791092,11.7423,214.06,214.0,4.2033]
[1758740791392,3.31532255,214.05,214.01,7.54]
[1758740791691,4.2023,214.06,214.01,7.54]
[1758740791888,3.31547863,214.05,214.01,7.54]
[1758740792088,7.54,214.05,214.0,4.2033]
[1758740792281,7.54,214.05,214.01,7.54]
[1758740792695,7.54,214.05,214.0,4.2033]
[1758740793192,7.54,214.04,214.01,7.54]
[1758740793393,3.31691563,214.03,213.99,7.54]
[1758740793586,7.54,214.02,213.99,7.54]
[1758740793790,3.35723401,214.04,213.93,7.54]
[1758740793983,3.3164962,214.03,213.93,7.54]
[1758740794182,7.54,214.04,213.93,72.9476]
[1758740794387,3.31678865,214.03,213.94,7.54]
[1758740794585,7.54,214.04,213.96,2.15183771]
[1758740794781,3.3157118,214.03,213.97,7.54]
[1758740794986,7.54,214.04,213.97,7.54]
[1758740795288,3.3157118,214.03,213.98,4.2036]
[1758740795497,7.54,214.04,213.99,7.54]
[1758740795794,3.31490743,214.03,213.98,4.2036]
[1758740795994,7.54,214.04,213.99,7.54]
[1758740796189,3.31490624,214.03,214.0,7.54]
[1758740796490,7.54,214.04,214.0,7.54]
[1758740796692,3.31425025,214.03,214.0,7.54]
[1758740796890,7.54,214.04,214.0,7.54]
[1758740797091,3.31425025,214.03,214.0,7.54]
[1758740797291,7.54,214.04,214.0,7.54]
[1758740797494,3.31365142,214.03,214.0,7.54]
[1758740797791,7.54,214.04,214.0,7.54]
[1758740797989,3.31365142,214.03,214.0,7.54]
[1758740798194,7.54,214.04,214.0,7.54]
[1758740798389,3.31365142,214.03,214.0,7.54]
[1758740798596,7.54,214.04,214.0,7.54]
[1758740798791,3.31314161,214.03,214.0,7.54]
[1758740798987,7.54,214.04,214.0,7.54]
[1758740799192,3.31314161,214.03,214.0,7.54]
[1758740799497,7.54,214.04,214.0,7.54]
[1758740799796,6.35453771,214.04,214.0,7.54]
[1758740800095,10.85271639,214.03,214.0,7.54]
[1758740800301,7.54,214.03,214.0,7.54]
[1758740800501,6.35453771,214.04,213.95,2.15183771]
[1758740800797,10.85241724,214.03,213.96,7.54]
[1758740800995,7.54,214.03,213.96,7.54]
[1758740801198,7.54,214.03,213.97,4.2039]
[1758740802793,7.54,214.03,213.98,4.2036]
[1758740802994,7.54,214.03,213.99,7.54]
[1758740803294,7.54,214.03,213.95,67.55293771]
[1758740803493,7.54,214.03,213.96,7.54]
[1758740803895,7.54,214.03,213.95,67.55293771]
[1758740804196,7.54,214.03,213.96,7.54]
[1758740805296,7.54,214.03,214.0,7.54]
[1758740807294,4.2025,214.05,214.0,7.54]
[1758740807596,7.54,214.03,213.97,11.7439]
[1758740807997,11.743,214.03,213.97,11.7439]
[1758740808802,4.2031,214.02,213.97,7.54]
[1758740809196,7.54,214.01,213.97,7.54]
[1758740809394,7.54,214.01,213.94,2.15183771]
[1758740809395,7.54,213.99,213.94,7.54]
[1758740809598,7.54,213.99,213.93,7.54]
[1758740810303,13.89533771,214.0,213.94,11.7445]
[1758740811106,4.2037,213.99,213.94,7.54]
[1758740811299,7.54,213.98,213.94,7.54]
[1758740811500,4.2037,213.99,213.94,7.54]
[1758740811904,7.54,213.98,213.91,7.54]
[1758740812106,11.7439,213.98,213.9,2.15183771]
[1758740812405,11.7439,213.98,213.91,7.54]
[1758740813414,7.54,213.99,213.92,7.54]
[1758740814111,7.54,213.99,213.93,4.2047]
[1758740815211,11.7437,213.99,213.93,4.2047]
[1758740815512,10.02183771,214.0,213.94,11.6345]
[1758740815707,2.15183771,214.03,213.94,9.58183771]
[1758740815912,10.02183771,214.03,213.95,7.43]
[1758740816107,7.87,214.0,213.96,4.204]
[1758740816312,7.87,214.0,213.96,11.634]
[1758740816512,2.15183771,214.01,213.96,11.634]
[1758740817214,7.87,214.0,213.96,11.634]
[1758740817616,2.15183771,214.01,213.96,11.634]
[1758740817818,7.87,214.0,213.96,11.634]
[1758740818016,6.35513771,214.01,213.96,7.43]
[1758740818418,2.15183771,213.99,213.94,4.2045]
[1758740818718,7.87,213.98,213.94,4.2045]
[1758740819112,7.87,213.98,213.94,11.6345]
[1758740819518,2.15183771,213.99,213.94,11.6345]
[1758740819720,7.87,213.98,213.94,11.6345]
[1758740820018,7.77,213.98,213.94,11.6345]
[1758740820220,9.92183771,214.01,213.91,7.18]
[1758740821220,9.92183771,214.01,213.95,4.2043]
[1758740821416,7.77,214.01,213.93,7.18]
[1758740821920,7.77,214.01,213.95,7.18]
[1758740822814,7.77,214.02,213.95,7.18]
[1758740823015,2.15183771,213.99,213.9,7.18]
[1758740823219,7.77,213.98,213.9,7.18]
[1758740824223,2.15183771,213.99,213.93,4.2047]
[1758740824619,9.92183771,213.99,213.93,4.2047]
[1758740826023,9.92183771,213.99,213.92,7.18]
[1758740826224,7.77,213.99,213.92,7.18]
[1758740827223,7.77,213.99,213.95,4.2043]
[1758740827422,7.77,213.99,213.95,11.3843]
[1758740827616,7.77,214.0,213.95,11.3843]
[1758740827818,2.15183771,214.01,213.95,11.3843]
[1758740828020,7.77,214.01,213.96,4.2041]
[1758740828220,6.35493771,214.02,213.96,11.3841]
[1758740829025,7.77,214.01,213.96,11.3841]
[1758740829221,6.35493771,214.02,213.96,11.3841]
[1758740829425,7.77,214.01,213.96,11.3841]
[1758740829625,6.35493771,214.02,213.96,4.2041]
[1758740829925,11.9733,214.01,213.94,7.18]
[1758740830126,14.12513771,214.01,213.94,7.18]
[1758740830821,9.92183771,214.01,213.97,4.2039]
[1758740831121,7.77,214.01,213.97,4.2039]
[1758740831321,121.03,214.04,213.93,7.18]
[1758740832026,121.03,214.04,213.98,4.2037]
[1758740833127,123.18183771,214.04,213.98,4.2037]
[1758740834123,115.41183771,214.04,213.99,4.2035]
[1758740834329,113.26,214.04,213.96,7.18]
[1758740834725,113.26,214.04,214.01,4.2031]
[1758740834925,113.26,214.04,213.99,7.18]
[1758740835326,113.26,214.04,213.98,2.15183771]
[1758740835828,113.26,214.04,213.99,7.18]
[1758740836019,113.26,214.04,213.98,2.15183771]
[1758740836222,113.26,214.04,213.99,7.18]
[1758740836424,113.26,214.04,213.98,2.15183771]
[1758740836627,7.77,214.1,213.99,7.18]
[1758740836837,7.77,214.1,214.02,7.18]
[1758740837930,7.77,214.1,214.03,4.2027]
[1758740839430,2.15183771,214.08,214.01,4.2031]
[1758740839623,7.77,214.07,214.01,4.2031]
[1758740840327,7.77,214.07,213.99,7.18]
[1758740840728,7.77,214.07,214.01,4.2031]
[1758740841125,7.77,214.07,214.01,11.3831]
[1758740841325,7.77,214.07,214.01,7.18]
[1758740842230,7.77,214.07,214.02,4.2029]
[1758740842423,7.77,214.09,214.02,4.2029]
[1758740843024,7.77,214.09,214.03,4.2027]
[1758740843237,7.77,214.09,214.01,7.18]
[1758740844230,2.15183771,214.1,214.04,4.2025]
[1758740844530,10.03183771,214.1,214.04,4.2025]
[1758740845229,7.88,214.1,214.04,4.2025]
[1758740846435,7.88,214.1,214.05,4.2023]
[1758740846629,113.24,214.11,214.04,7.22]
[1758740847232,7.88,214.14,214.07,2.15183771]
[1758740847529,10.03183771,214.17,214.08,7.22]
[1758740847933,7.88,214.16,214.12,11.4209]
[1758740848132,7.88,214.16,214.13,7.22]
[1758740848835,7.88,214.16,214.13,11.4207]
[1758740852035,34.17183771,214.19,214.14,7.22]
[1758740852627,7.88,214.18,214.11,4.2012]
[1758740852936,2.15183771,214.17,214.11,4.2012]
[1758740853329,7.88,214.16,214.11,4.2012]
[1758740853729,2.15183771,214.17,214.11,4.2012]
[1758740853927,7.88,214.16,214.11,4.2012]
[1758740854126,2.15183771,214.17,214.11,4.2012]
[1758740854638,7.88,214.17,214.11,4.2012]
[1758740855439,7.88,214.17,214.12,4.2009]
[1758740855638,7.88,214.18,214.12,4.2009]
[1758740859234,3.35851677,214.2,214.13,4.2007]
[1758740859539,7.88,214.19,214.12,7.22]
[1758740859741,7.88,214.19,214.16,7.22]
[1758740860231,7.88,214.22,214.12,7.22]
[1758740860631,7.88,214.22,214.18,4.1997]
[1758740860836,7.88,214.25,214.19,7.22]
[1758740861340,7.88,214.25,214.19,11.4195]
[1758740870838,3.27868089,214.24,214.19,11.4195]
[1758740871038,11.15868089,214.23,214.2,7.22]
[1758740871242,3.27868089,214.22,214.2,7.22]
[1758740871441,3.27868089,214.21,214.2,7.22]
[1758740879148,3.28003841,214.21,214.2,7.22]
[1758740879355,3.28003841,214.22,214.2,7.22]
[1758740879554,3.28003841,214.21,214.2,7.22]
[1758740880150,3.28003841,214.22,214.2,7.22]
[1758740880355,3.28003841,214.22,214.17,4.2]
[1758740880356,7.95,214.21,214.17,4.2]
[1758740880557,3.28003841,214.2,214.15,7.54]
[1758740880855,3.28003841,214.2,214.12,7.54]
[1758740880856,7.95,214.19,214.12,7.54]
[1758740881050,3.28003841,214.18,214.12,7.54]
[1758740881252,11.23003841,214.17,214.08,7.54]
[1758740881456,3.28003841,214.16,214.08,7.54]
[1758740881957,3.28003841,214.16,214.11,11.7412]
[1758740882154,7.95,214.14,214.11,11.7412]
[1758740882350,3.28003841,214.13,214.11,11.7412]
[1758740882852,3.28003841,214.13,214.12,7.54]
[1758740883064,3.28003841,214.15,214.12,11.7409]
[1758740883252,3.28003841,214.14,214.12,11.7409]
[1758740883553,3.28003841,214.13,214.12,11.7409]
[1758740883853,3.28405974,214.15,214.14,7.54]
[1758740884056,3.28402052,214.15,214.14,7.54]
[1758740884456,3.28402052,214.15,214.14,11.7405]
[1758740887965,3.28402052,214.15,214.14,4.2005]
[1758740888258,3.28402052,214.15,214.14,11.7405]
[1758740891562,7.95,214.24,214.19,7.54]
[1758740891862,7.95,214.24,214.15,7.54]
[1758740892361,13.17260093,214.24,214.18,11.7397]
[1758740892563,7.95,214.23,214.18,4.1997]
[1758740892758,5.22260093,214.24,214.18,4.1997]
[1758740893464,5.22260093,214.24,214.18,11.7397]
[1758740893663,7.95,214.23,214.18,11.7397]
[1758740893861,5.22260093,214.24,214.18,11.7397]
[1758740894163,13.17260093,214.24,214.18,11.7397]
[1758740894365,13.17260093,214.24,214.16,4.2002]
[1758740894958,9.42160093,214.23,214.14,11.7406]
[1758740895163,7.95,214.2,214.14,11.7406]
[1758740895871,7.95,214.21,214.13,7.54]
[1758740897462,5.22260093,214.22,214.16,4.2001]
[1758740897860,7.95,214.21,214.16,4.2001]
[1758740898256,5.22260093,214.22,214.16,4.2001]
[1758740898660,7.95,214.21,214.16,4.2001]
[1758740898863,13.17260093,214.21,214.16,4.2001]
[1758740899059,7.95,214.2,214.16,4.2001]
[1758740899361,7.95,214.2,214.14,11.7405]
[1758740899565,13.17260093,214.2,214.14,11.7405]
[1758740900369,5.22260093,214.2,214.14,11.7405]
[1758740900667,7.95,214.18,214.12,0.96549197]
[1758740901766,7.95,214.18,214.11,7.54]
[1758740902263,7.95,214.18,214.13,4.2007]
[1758740902569,13.17260093,214.19,214.13,4.2007]
[1758740903570,7.95,214.17,214.13,11.7407]
[1758740903777,3.35276163,214.16,214.13,4.2007]
[1758740904063,3.35276163,214.15,214.13,4.2007]
[1758740904378,3.35276163,214.14,214.13,4.2007]
[1758740905065,3.35276163,214.14,214.13,11.9007]
[1758740905363,3.35276163,214.14,214.13,7.7]
[1758740905569,10.74276163,214.14,214.11,11.9011]
[1758740905769,3.35276163,214.13,214.11,11.9011]
[1758740905968,7.39,214.11,214.06,7.7]
[1758740906170,3.35276163,214.1,214.05,0.93934732]
[1758740906366,3.35276163,214.09,214.06,7.7]
[1758740906566,3.35276163,214.08,214.05,0.93934732]
[1758740906770,5.22260093,214.15,214.08,7.7]
[1758740906970,10.74310775,214.14,214.08,7.7]
[1758740907167,7.39,214.12,214.08,7.7]
[1758740907368,10.74310775,214.11,214.08,7.7]
[1758740907569,3.35310775,214.1,214.08,7.7]
[1758740907771,3.35310775,214.09,214.08,7.7]
[1758740910983,3.35310775,214.09,214.06,11.9021]
[1758740911185,7.39,214.07,214.04,11.9025]
[1758740911384,3.35310775,214.06,214.04,11.9025]
[1758740911584,7.39,214.07,214.04,11.9025]
[1758740911783,3.34935656,214.06,214.04,11.9025]
[1758740911982,7.39,214.07,214.04,11.9025]
[1758740912186,3.34935406,214.06,214.04,11.9025]
[1758740912486,10.7391619,214.05,214.02,11.9029]
[1758740912684,7.39,214.05,214.02,11.9029]
[1758740913589,10.73831295,214.04,214.01,7.7]
[1758740913780,10.73831295,214.03,213.97,0.9044171]
[1758740914086,10.73831295,214.03,213.94,68.76231677]
[1758740914087,3.34831295,214.02,213.95,7.7]
[1758740914486,10.73831295,214.02,213.98,11.9037]
[1758740914687,3.34831295,214.01,213.98,11.9037]
[1758740914886,7.39,214.02,213.98,7.7]
[1758740915083,3.34662248,214.01,213.96,7.7]
[1758740915287,7.39,214.02,213.95,11.9042]
[1758740915481,3.34480164,214.01,213.95,11.9042]
[1758740915679,7.39,214.02,213.95,11.9042]
[1758740915888,3.34480068,214.01,213.95,7.7]
[1758740916194,7.39,214.02,213.95,7.7]
[1758740917284,7.39,214.03,213.97,4.2038]
[1758740917479,10.73122138,214.02,213.98,7.7]
[1758740917684,2.15223549,214.04,213.94,9.85223549]
[1758740917685,7.39,214.01,213.94,9.85223549]
[1758740918581,7.39,214.01,213.97,7.7]
[1758740918895,7.39,214.01,213.96,4.204]
[1758740919194,7.39,214.01,213.97,7.7]
[1758740920489,7.39,214.01,213.96,4.204]
[1758740921183,7.39,214.01,213.97,7.7]
[1758740921584,7.39,214.01,213.97,11.9039]
[1758740921785,7.39,214.01,213.98,7.7]
[1758740923493,7.39,214.01,213.98,11.9037]
[1758740923690,7.39,214.01,213.98,9.85223549]
[1758740923989,9.54223549,214.07,213.99,7.7]
[1758740924191,3.34035942,214.06,213.99,7.7]
[1758740924387,3.34035942,214.05,213.99,7.7]
[1758740924590,9.54223549,214.07,213.99,7.7]
[1758740924785,7.39,214.05,214.01,4.2031]
[1758740924982,7.39,214.05,214.02,7.7]
[1758740925788,2.15223549,214.05,213.99,11.9036]
[1758740925990,3.33962405,214.04,213.99,11.9036]
[1758740926191,2.15223549,214.05,213.99,11.9036]
[1758740926393,7.39,214.03,213.99,11.9036]